fUST/lending_fUST_20260619
["ID","MTS","AMOUNT","RATE_DAILY","PERIOD"]
[425686440,1781862638000,-500.0,0.00019251,2]
[425686442,1781862638000,-1017.33780392,0.000193,2]
[425686443,1781862638000,-874.58951452,0.000193,2]
[425686441,1781862638000,-11515.55631889,0.000193,2]
[425686444,1781862638000,-3864.68217454,0.000193,2]
[425686438,1781862638000,-176.342,0.00019178,2]
[425686429,1781862638000,-500.0,0.00019149,2]
[425686437,1781862638000,-500.0,0.00019178,2]
[425686426,1781862638000,-500.0,0.00019149,2]
[425686407,1781862638000,-500.0,0.00018977,2]
[425686413,1781862638000,-500.0,0.00018977,2]
[425686425,1781862638000,-500.0,0.00019149,2]
[425686415,1781862638000,-500.0,0.00018977,2]
[425686414,1781862638000,-500.0,0.00018977,2]
[425686424,1781862638000,-500.0,0.00019149,2]
[425686445,1781862638000,-115060.35439516,0.000193,2]
[425686418,1781862638000,-417.15472785,0.00019002,2]
[425686422,1781862638000,-221.0,0.00019096,3]
[425686417,1781862638000,-791.51285771,0.00019,2]
[425686419,1781862638000,-160.0,0.00019002,2]
[425686423,1781862638000,-500.0,0.00019149,2]
[425686420,1781862638000,-160.0,0.00019002,2]
[425686421,1781862638000,-353.94782361,0.00019012,2]
[425686427,1781862638000,-500.0,0.00019149,2]
[425686406,1781862638000,-500.0,0.00018977,2]
[425686448,1781862640000,-2120.24758729,0.000193,2]
[425686451,1781862643000,-3506.80553173,0.000193,2]
[425686450,1781862643000,-2140.0,0.000193,2]
[425686460,1781862646000,-8274.93333856,0.000193,2]
[425686459,1781862646000,-3010.79778168,0.000193,2]
[425689703,1781862781000,184.14372803,0.00023322,120]
[425689783,1781863056000,5423.77877054,7.6e-05,2]
[425689782,1781863056000,1000.0,7.6e-05,2]
[425689781,1781863056000,1000.0,7.6e-05,2]
[425689780,1781863056000,1000.0,7.6e-05,2]
[425689811,1781863292000,-4007.22032226,0.00015059,2]
[425689905,1781863832000,-241.94368111,0.00015365,2]
[425689902,1781863832000,-500.0,0.00015365,2]
[425689903,1781863832000,-484.54122956,0.00015365,2]
[425689897,1781863832000,-5000.0,0.00013756,2]
[425689900,1781863832000,-300.0,0.00015364,2]
[425689899,1781863832000,-245.14858256,0.00014035,2]
[425689907,1781863832000,-504.34024752,0.00016292,5]
[425689898,1781863832000,-268.31018788,0.00013895,2]
[425689901,1781863832000,-500.0,0.00015365,2]
[425689906,1781863832000,-372.7717251,0.00015521,2]
[425689910,1781863832000,-460.96818549,0.00016428,2]
[425689904,1781863832000,-15.45877044,0.00015365,2]
[425689909,1781863832000,-176.747651,0.00016349,2]
[425689914,1781863832000,-5926.00003532,0.00017657,2]
[425689911,1781863832000,-152.0,0.00016428,7]
[425689912,1781863832000,-234.9840031,0.00016498,2]
[425689916,1781863832000,-500.0,0.00017665,2]
[425689913,1781863832000,-186.0,0.00017086,2]
[425689917,1781863832000,-877.42854288,0.00017666,2]
[425689915,1781863832000,-500.0,0.00017665,2]
[425689908,1781863832000,-202.94143976,0.00016292,5]
[425689925,1781863838000,-198.70446601,0.0001773,2]
[425689922,1781863838000,-21209.21669939,0.00017666,2]
[425689924,1781863838000,-151.0,0.00017666,2]
[425689928,1781863838000,-500.0,0.00018213,2]
[425689921,1781863838000,-398.97496663,0.00017666,2]
[425689929,1781863838000,-176.343,0.00018356,2]
[425689927,1781863838000,-500.0,0.00017939,2]
[425689923,1781863838000,-151.0,0.00017666,2]
[425689930,1781863838000,-686.11849585,0.00018472,2]
[425689926,1781863838000,-297.0,0.00017918,3]
[425689949,1781863843000,-500.0,0.00018487,2]
[425689950,1781863843000,-194.73403175,0.0001866,2]
[425689970,1781863846000,-523.18375174,0.00018761,2]
[425689969,1781863846000,-1109.56198525,0.00018761,2]
[425689968,1781863846000,-500.0,0.00018761,2]
[425689967,1781863846000,-24.43321784,0.0001866,2]
[425692416,1781865032000,-5000.0,0.00013848,2]
[425692427,1781865032000,-623.57696138,0.00013988,2]
[425692424,1781865032000,-356.1667011,0.00013988,2]
[425692418,1781865032000,-2072.86306255,0.00013988,2]
[425692653,1781865038000,-300.0,0.00016996,2]
[425692652,1781865038000,-300.0,0.00016996,2]
[425692648,1781865038000,-300.0,0.00016996,2]
[425692639,1781865038000,-300.0,0.00016996,2]
[425692644,1781865038000,-300.0,0.00016996,2]
[425692646,1781865038000,-300.0,0.00016996,2]
[425692650,1781865038000,-300.0,0.00016996,2]
[425692624,1781865038000,-1947.39327497,0.00013988,2]
[425692637,1781865038000,-300.0,0.00016996,2]
[425692626,1781865038000,-1142.49991579,0.00014129,2]
[425692628,1781865038000,-187.241228,0.00016103,2]
[425692632,1781865038000,-1000.0,0.00016158,2]
[425692635,1781865038000,-300.0,0.00016996,2]
[425692655,1781865038000,-300.0,0.00016996,2]
[425692633,1781865038000,-1172.3675507,0.00016246,2]
[425692630,1781865038000,-199.388035,0.00016103,2]
[425692640,1781865038000,-300.0,0.00016996,2]
[425692657,1781865038000,-300.0,0.00016996,2]
[425692642,1781865038000,-300.0,0.00016996,2]
[425692662,1781865038000,-152.0,0.00017117,7]
[425692659,1781865038000,-300.0,0.00016996,2]
[425692686,1781865038000,-500.0,0.00017455,2]
[425692691,1781865038000,-500.0,0.00017455,2]
[425692687,1781865038000,-500.0,0.00017455,2]
[425692684,1781865038000,-500.0,0.00017455,2]
[425692679,1781865038000,-518.01623558,0.00017455,2]
[425692677,1781865038000,-564.35,0.00017452,3]
[425692673,1781865038000,-376.21,0.00017452,3]
[425692689,1781865038000,-500.0,0.00017455,2]
[425692675,1781865038000,-188.11,0.00017452,3]
[425692671,1781865038000,-752.43,0.00017452,3]
[425692680,1781865038000,-500.0,0.00017455,2]
[425692669,1781865038000,-1504.85,0.00017452,3]
[425692667,1781865038000,-428.27063905,0.00017362,2]
[425692666,1781865038000,-600.0,0.00017335,2]
[425692661,1781865038000,-300.0,0.00016996,2]
[425692682,1781865038000,-500.0,0.00017455,2]
[425692664,1781865038000,-516.92258345,0.00017281,2]
[425692721,1781865039000,-500.0,0.00017455,2]
[425692719,1781865039000,-500.0,0.00017455,2]
[425692724,1781865039000,-500.0,0.00017455,2]
[425692723,1781865039000,-500.0,0.00017455,2]
[425692728,1781865039000,-500.0,0.00017455,2]
[425692734,1781865039000,-500.0,0.00017455,2]
[425692726,1781865039000,-587.76475412,0.00017455,2]
[425692738,1781865039000,-500.0,0.00017455,2]
[425692739,1781865039000,-500.0,0.00017455,2]
[425692717,1781865039000,-500.0,0.00017455,2]
[425692730,1781865039000,-500.0,0.00017455,2]
[425692715,1781865039000,-500.0,0.00017455,2]
[425692702,1781865039000,-500.0,0.00017455,2]
[425692711,1781865039000,-500.0,0.00017455,2]
[425692710,1781865039000,-500.0,0.00017455,2]
[425692708,1781865039000,-500.0,0.00017455,2]
[425692706,1781865039000,-500.0,0.00017455,2]
[425692704,1781865039000,-500.0,0.00017455,2]
[425692700,1781865039000,-500.0,0.00017455,2]
[425692695,1781865039000,-500.0,0.00017455,2]
[425692698,1781865039000,-500.0,0.00017455,2]
[425692697,1781865039000,-500.0,0.00017455,2]
[425692693,1781865039000,-500.0,0.00017455,2]
[425692741,1781865039000,-500.0,0.00017455,2]
[425692713,1781865039000,-500.0,0.00017455,2]
[425692750,1781865039000,-500.0,0.00017455,2]
[425692732,1781865039000,-500.0,0.00017455,2]
[425692745,1781865039000,-500.0,0.00017455,2]
[425692799,1781865039000,-297331.65559661,0.00017462,2]
[425692786,1781865039000,-2131.796744,0.0001746,2]
[425692796,1781865039000,-198983.01072488,0.00017462,2]
[425692794,1781865039000,-186.696,0.00017461,2]
[425692790,1781865039000,-2131.796744,0.0001746,2]
[425692784,1781865039000,-2131.796744,0.0001746,2]
[425692788,1781865039000,-2131.796744,0.0001746,2]
[425692780,1781865039000,-2131.796744,0.0001746,2]
[425692767,1781865039000,-1841.0,0.00017456,2]
[425692778,1781865039000,-2131.796744,0.0001746,2]
[425692765,1781865039000,-186.0,0.00017456,2]
[425692777,1781865039000,-500.0,0.0001746,2]
[425692782,1781865039000,-2131.796744,0.0001746,2]
[425692763,1781865039000,-500.0,0.00017455,2]
[425692736,1781865039000,-500.0,0.00017455,2]
[425692775,1781865039000,-500.0,0.0001746,2]
[425692754,1781865039000,-500.0,0.00017455,2]
[425692755,1781865039000,-500.0,0.00017455,2]
[425692773,1781865039000,-500.0,0.0001746,2]
[425692771,1781865039000,-485.6162685,0.00017459,2]
[425692752,1781865039000,-500.0,0.00017455,2]
[425692769,1781865039000,-500.0,0.00017459,2]
[425692757,1781865039000,-500.0,0.00017455,2]
[425692761,1781865039000,-500.0,0.00017455,2]
[425692759,1781865039000,-500.0,0.00017455,2]
[425692792,1781865039000,-2131.796744,0.0001746,2]
[425692743,1781865039000,-500.0,0.00017455,2]
[425692999,1781865041000,-1451.4124612,0.00017462,2]
[425692997,1781865041000,-2774.967945,0.00017462,2]
[425693283,1781865043000,-615.908,0.00017462,2]
[425693285,1781865043000,-255.90082593,0.00017462,2]
[425693291,1781865044000,-2225.032055,0.00017462,2]
[425693613,1781865046000,-331.6,0.00017287,2]
[425697642,1781865219000,-213.47024934,9e-05,2]
[425697643,1781865221000,-152.0,9e-05,2]
[425697644,1781865222000,-391.16871995,9e-05,2]
[425697645,1781865223000,-205.01718453,9e-05,2]
[425697646,1781865224000,-103.88573611,9e-05,2]
[425697647,1781865224000,-133.21188315,9e-05,2]
[425697648,1781865226000,-152.0,9e-05,2]
[425697651,1781865238000,-357.79190872,8.91e-05,2]
[425697652,1781865240000,-336.88679517,8.91e-05,2]
[425697653,1781865241000,-423.20997246,8.91e-05,2]
[425697654,1781865242000,-221.89056234,8.91e-05,2]
[425697655,1781865243000,-357.50802954,8.91e-05,2]
[425697656,1781865245000,-302.75794328,8.91e-05,2]
[425697657,1781865246000,-235.73214119,8.91e-05,2]
[425697658,1781865249000,-715.97383072,8.91e-05,2]
[425697659,1781865250000,-306.25961643,8.91e-05,2]
[425697660,1781865251000,-428.33487404,8.91e-05,2]
[425697661,1781865253000,-272.54731374,8.91e-05,2]
[425697662,1781865254000,-199.53298916,8.91e-05,2]
[425697663,1781865255000,-152.0,8.91e-05,2]
[425697668,1781865432000,-772.16357969,8.91e-05,2]
[425697669,1781865441000,-726.15379889,8.91e-05,2]
[425697670,1781865450000,-500.0,8.91e-05,2]
[425697672,1781865451000,-239.64878799,8.91e-05,2]
[425697673,1781865452000,-325.37338204,8.91e-05,2]
[425697674,1781865454000,-373.76540452,8.91e-05,2]
[425697678,1781865624000,-239.64878799,8.821e-05,2]
[425697681,1781865769000,151.0,8.471e-05,2]
[425697683,1781865817000,3886.03880062,8.602e-05,2]
[425697684,1781865826000,239.64878799,8.602e-05,2]
[425697837,1781866233000,-300.0,0.00010199,2]
[425697843,1781866233000,-300.0,0.00010199,2]
[425697849,1781866233000,-300.0,0.00010199,2]
[425697845,1781866233000,-300.0,0.00010199,2]
[425697850,1781866233000,-300.0,0.00010199,2]
[425697829,1781866233000,-300.0,0.00010199,2]
[425697831,1781866233000,-300.0,0.00010199,2]
[425697822,1781866233000,-559.52020911,0.0001,2]
[425697826,1781866233000,-300.0,0.00010199,2]
[425697815,1781866233000,-433.45811007,0.0001,2]
[425697817,1781866233000,-6555.19512986,0.0001,2]
[425697824,1781866233000,-748.0239888,0.0001,2]
[425697832,1781866233000,-300.0,0.00010199,2]
[425697827,1781866233000,-300.0,0.00010199,2]
[425697834,1781866233000,-300.0,0.00010199,2]
[425697847,1781866233000,-300.0,0.00010199,2]
[425697864,1781866233000,-132.68837193,0.00014965,2]
[425697859,1781866233000,-1000.0,0.00013845,2]
[425697863,1781866233000,-169.790678,0.00014456,2]
[425697858,1781866233000,-864.0,0.00012586,2]
[425697856,1781866233000,-152.0,0.00011972,2]
[425697861,1781866233000,-153.78275799,0.00013894,2]
[425697852,1781866233000,-600.0,0.00010402,2]
[425697842,1781866233000,-300.0,0.00010199,2]
[425697840,1781866233000,-74.49419791,0.00010199,2]
[425697838,1781866233000,-225.50580209,0.00010199,2]
[425697836,1781866233000,-300.0,0.00010199,2]
[425697854,1781866233000,-720.0,0.00011442,2]
[425697935,1781866241000,-294.36659807,0.00014965,2]
[425697936,1781866241000,-30.6032811,0.00015068,2]
[425697961,1781866241000,-1000.0,0.0001523,2]
[425697959,1781866241000,-156.5555419,0.00015068,2]
[425697963,1781866241000,-81.77993296,0.0001523,2]
[425698244,1781866243000,-651.78274233,0.0001572,7]
[425698240,1781866243000,-162.22006704,0.0001523,2]
[425698242,1781866243000,-427.05497,0.00015595,2]
[425698555,1781866246000,-808.54082925,0.00016034,7]
[425698554,1781866246000,-515.62750826,0.00016033,2]
[425698559,1781866246000,-500.0,0.00016434,2]
[425698557,1781866246000,-427.05497,0.00016225,2]
[425698551,1781866246000,-156.75808692,0.0001572,7]
[425698564,1781866246000,-184.79053559,0.00016438,2]
[425698547,1781866246000,-152.0,9.645e-05,2]
[425698561,1781866246000,-500.0,0.00016434,2]
[425698563,1781866246000,-500.0,0.00016438,2]
[425698642,1781866247000,-500.0,0.00016438,2]
[425698635,1781866247000,-500.0,0.00016438,2]
[425698633,1781866247000,-500.0,0.00016438,2]
[425698637,1781866247000,-500.0,0.00016438,2]
[425698638,1781866247000,-500.0,0.00016438,2]
[425698640,1781866247000,-500.0,0.00016438,2]
[425698647,1781866247000,-500.0,0.00016438,2]
[425698649,1781866247000,-500.0,0.00016438,2]
[425698651,1781866247000,-500.0,0.00016438,2]
[425698656,1781866247000,-623.48,0.00016438,2]
[425698654,1781866247000,-500.0,0.00016438,2]
[425698645,1781866247000,-1000.0,0.00016438,2]
[425698667,1781866247000,-500.0,0.00016438,2]
[425698659,1781866247000,-500.0,0.00016438,2]
[425698661,1781866247000,-500.0,0.00016438,2]
[425698668,1781866247000,-500.0,0.00016438,2]
[425698670,1781866247000,-500.0,0.00016438,2]
[425698665,1781866247000,-500.0,0.00016438,2]
[425698658,1781866247000,-500.0,0.00016438,2]
[425698663,1781866247000,-500.0,0.00016438,2]
[425698672,1781866247000,-500.84,0.00016438,2]
[425698682,1781866247000,-500.0,0.00016438,2]
[425698674,1781866247000,-500.0,0.00016438,2]
[425698679,1781866247000,-500.0,0.00016438,2]
[425698684,1781866247000,-500.0,0.00016438,2]
[425698643,1781866247000,-500.0,0.00016438,2]
[425698653,1781866247000,-500.0,0.00016438,2]
[425698630,1781866247000,-500.0,0.00016438,2]
[425698600,1781866247000,-500.0,0.00016438,2]
[425698677,1781866247000,-500.0,0.00016438,2]
[425698587,1781866247000,-500.0,0.00016438,2]
[425698590,1781866247000,-205.21270164,0.00016438,2]
[425698592,1781866247000,-500.0,0.00016438,2]
[425698589,1781866247000,-500.0,0.00016438,2]
[425698594,1781866247000,-203.44112196,0.00016438,2]
[425698579,1781866247000,-315.20946441,0.00016438,2]
[425698583,1781866247000,-500.0,0.00016438,2]
[425698581,1781866247000,-506.97,0.00016438,2]
[425698585,1781866247000,-500.0,0.00016438,2]
[425698596,1781866247000,-526.22497594,0.00016438,2]
[425698598,1781866247000,-500.39807088,0.00016438,2]
[425698603,1781866247000,-500.0,0.00016438,2]
[425698628,1781866247000,-507.03055396,0.00016438,2]
[425698605,1781866247000,-500.0,0.00016438,2]
[425698607,1781866247000,-500.0,0.00016438,2]
[425698617,1781866247000,-500.0,0.00016438,2]
[425698609,1781866247000,-500.0,0.00016438,2]
[425698613,1781866247000,-500.0,0.00016438,2]
[425698611,1781866247000,-500.0,0.00016438,2]
[425698615,1781866247000,-571.873841,0.00016438,2]
[425698620,1781866247000,-500.0,0.00016438,2]
[425698618,1781866247000,-500.0,0.00016438,2]
[425698622,1781866247000,-500.0,0.00016438,2]
[425698626,1781866247000,-400.0,0.00016438,2]
[425698624,1781866247000,-500.0,0.00016438,2]
[425698631,1781866247000,-392.54621598,0.00016438,2]
[425698602,1781866247000,-500.0,0.00016438,2]
[425698675,1781866247000,-500.0,0.00016438,2]
[425698744,1781866247000,-286.68,0.00016712,2]
[425698686,1781866247000,-500.0,0.00016438,2]
[425698748,1781866247000,-500.0,0.00016712,2]
[425698746,1781866247000,-327.33,0.00016712,2]
[425698751,1781866247000,-349.03,0.00016712,2]
[425698763,1781866247000,-500.0,0.00016712,2]
[425698757,1781866247000,-500.0,0.00016712,2]
[425698759,1781866247000,-406.52,0.00016712,2]
[425698753,1781866247000,-500.0,0.00016712,2]
[425698755,1781866247000,-525.14,0.00016712,2]
[425698764,1781866247000,-500.0,0.00016712,2]
[425698761,1781866247000,-502.64,0.00016712,2]
[425698766,1781866247000,-541.61,0.00016712,2]
[425698768,1781866247000,-505.40857009,0.00016712,2]
[425698749,1781866247000,-201.29,0.00016712,2]
[425698772,1781866247000,-272.74,0.00016712,2]
[425698775,1781866247000,-500.0,0.00016712,2]
[425698786,1781866247000,-500.0,0.00016712,2]
[425698777,1781866247000,-500.96,0.00016712,2]
[425698780,1781866247000,-468.34,0.00016712,2]
[425698782,1781866247000,-500.0,0.00016712,2]
[425698784,1781866247000,-822.56,0.00016712,2]
[425698779,1781866247000,-233.96,0.00016712,2]
[425698788,1781866247000,-459.99,0.00016712,2]
[425698790,1781866247000,-201.22,0.00016712,2]
[425698792,1781866247000,-500.0,0.00016712,2]
[425698794,1781866247000,-1000.0,0.00016752,2]
[425698688,1781866247000,-490.67351112,0.00016438,2]
[425698773,1781866247000,-500.0,0.00016712,2]
[425698742,1781866247000,-152.0,0.00016512,7]
[425698770,1781866247000,-500.0,0.00016712,2]
[425698738,1781866247000,-808.54082925,0.00016506,7]
[425698740,1781866247000,-152.0,0.00016507,7]
[425698691,1781866247000,-500.0,0.00016438,2]
[425698690,1781866247000,-500.0,0.00016438,2]
[425698695,1781866247000,-500.0,0.00016438,2]
[425698693,1781866247000,-500.0,0.00016438,2]
[425698699,1781866247000,-502.02340496,0.00016438,2]
[425698697,1781866247000,-500.0,0.00016438,2]
[425698700,1781866247000,-500.0,0.00016438,2]
[425698706,1781866247000,-500.0,0.00016438,2]
[425698709,1781866247000,-314.3936499,0.00016438,2]
[425698704,1781866247000,-292.75659314,0.00016438,2]
[425698707,1781866247000,-500.0,0.00016438,2]
[425698713,1781866247000,-504.44677738,0.00016438,2]
[425698702,1781866247000,-500.0,0.00016438,2]
[425698681,1781866247000,-502.087359,0.00016438,2]
[425698715,1781866247000,-822.56,0.00016438,2]
[425698729,1781866247000,-500.0,0.00016438,2]
[425698731,1781866247000,-500.0,0.00016438,2]
[425698735,1781866247000,-500.0,0.00016438,2]
[425698733,1781866247000,-500.0,0.00016438,2]
[425698727,1781866247000,-500.0,0.00016438,2]
[425698736,1781866247000,-500.0,0.00016438,2]
[425698724,1781866247000,-513.73815572,0.00016438,2]
[425698722,1781866247000,-500.0,0.00016438,2]
[425698720,1781866247000,-500.0,0.00016438,2]
[425698718,1781866247000,-1000.0,0.00016438,2]
[425698711,1781866247000,-500.0,0.00016438,2]
[425698726,1781866247000,-500.0,0.00016438,2]
[425698878,1781866248000,-500.0,0.00017359,2]
[425698883,1781866248000,-527.39,0.00017359,2]
[425698869,1781866248000,-500.0,0.00017359,2]
[425698867,1781866248000,-165.13870115,0.00017359,2]
[425698873,1781866248000,-500.0,0.00017359,2]
[425698871,1781866248000,-548.67982492,0.00017359,2]
[425698862,1781866248000,-500.0,0.00017359,2]
[425698864,1781866248000,-613.86,0.00017359,2]
[425698859,1781866248000,-500.0,0.00017359,2]
[425698850,1781866248000,-500.0,0.0001726,2]
[425698879,1781866248000,-500.0,0.00017359,2]
[425698857,1781866248000,-151.0,0.00017358,2]
[425698866,1781866248000,-500.0,0.00017359,2]
[425698885,1781866248000,-500.0,0.00017359,2]
[425698892,1781866248000,-500.0,0.00017359,2]
[425698876,1781866248000,-571.53549247,0.00017359,2]
[425698874,1781866248000,-500.0,0.00017359,2]
[425698898,1781866248000,-500.0,0.00017359,2]
[425698887,1781866248000,-500.0,0.00017359,2]
[425698889,1781866248000,-563.91,0.00017359,2]
[425698855,1781866248000,-822.56,0.0001726,2]
[425698894,1781866248000,-500.26712174,0.00017359,2]
[425698890,1781866248000,-500.0,0.00017359,2]
[425698901,1781866248000,-500.0,0.00017359,2]
[425698905,1781866248000,-1133.73,0.00017359,2]
[425698896,1781866248000,-500.0,0.00017359,2]
[425698903,1781866248000,-485.97459966,0.00017359,2]
[425698907,1781866248000,-194.487014,0.00017359,2]
[425698908,1781866248000,-500.36554496,0.00017359,2]
[425698881,1781866248000,-500.0,0.00017359,2]
[425698851,1781866248000,-241.2,0.0001726,2]
[425698807,1781866248000,-500.0,0.00016986,2]
[425698860,1781866248000,-500.0,0.00017359,2]
[425698796,1781866248000,-492.0,0.00016752,2]
[425698800,1781866248000,-152.0,0.00016776,7]
[425698798,1781866248000,-152.0,0.00016771,7]
[425698910,1781866248000,-500.0,0.00017359,2]
[425698801,1781866248000,-427.05497,0.00016855,2]
[425698803,1781866248000,-808.54082925,0.00016977,7]
[425698811,1781866248000,-160.0,0.00016986,2]
[425698809,1781866248000,-160.0,0.00016986,2]
[425698805,1781866248000,-619.99,0.00016986,2]
[425698813,1781866248000,-160.0,0.00016986,2]
[425698814,1781866248000,-160.0,0.00016986,2]
[425698816,1781866248000,-246.94574595,0.00016986,2]
[425698818,1781866248000,-646.24,0.00016986,2]
[425698822,1781866248000,-500.0,0.00016986,2]
[425698853,1781866248000,-500.0,0.0001726,2]
[425698820,1781866248000,-500.0,0.00016986,2]
[425698834,1781866248000,-822.56,0.00016986,2]
[425698823,1781866248000,-151.0,0.00016986,2]
[425698836,1781866248000,-163.21,0.00016986,2]
[425698827,1781866248000,-413.24,0.00016986,2]
[425698829,1781866248000,-500.0,0.00016986,2]
[425698825,1781866248000,-151.790273,0.00016986,2]
[425698830,1781866248000,-500.0,0.00016986,2]
[425698839,1781866248000,-180.21,0.00017055,2]
[425698841,1781866248000,-180.21,0.00017055,2]
[425698843,1781866248000,-173.16541761,0.00017127,2]
[425698844,1781866248000,-311.38605394,0.00017127,2]
[425698846,1781866248000,-500.0,0.0001726,2]
[425698837,1781866248000,-555.76969194,0.00016986,2]
[425698848,1781866248000,-500.0,0.0001726,2]
[425698832,1781866248000,-356.21,0.00016986,2]
[425698916,1781866248000,-500.0,0.00017451,2]
[425698900,1781866248000,-619.39,0.00017359,2]
[425698914,1781866248000,-500.0,0.00017451,2]
[425698975,1781866248000,-1133.73,0.00017459,2]
[425698980,1781866248000,-500.0,0.00017461,2]
[425698982,1781866248000,-500.0,0.00017461,2]
[425698986,1781866248000,-500.0,0.00017461,2]
[425698987,1781866248000,-500.0,0.00017461,2]
[425698989,1781866248000,-293.09389064,0.00017461,2]
[425698993,1781866248000,-151.0,0.00017461,2]
[425699004,1781866248000,-1133.73,0.00017461,2]
[425698991,1781866248000,-504.15253493,0.00017461,2]
[425698995,1781866248000,-1133.73,0.00017461,2]
[425699000,1781866248000,-1133.73,0.00017461,2]
[425698997,1781866248000,-1133.73,0.00017461,2]
[425699002,1781866248000,-1133.73,0.00017461,2]
[425699006,1781866248000,-1133.73,0.00017461,2]
[425698978,1781866248000,-500.0,0.00017461,2]
[425698999,1781866248000,-1133.73,0.00017461,2]
[425699010,1781866248000,-1133.73,0.00017461,2]
[425699011,1781866248000,-1133.73,0.00017461,2]
[425699019,1781866248000,-1133.73,0.00017461,2]
[425699013,1781866248000,-1133.73,0.00017461,2]
[425699017,1781866248000,-1133.73,0.00017461,2]
[425699021,1781866248000,-1133.73,0.00017461,2]
[425699022,1781866248000,-1133.73,0.00017461,2]
[425699015,1781866248000,-1133.73,0.00017461,2]
[425699024,1781866248000,-1133.73,0.00017461,2]
[425699026,1781866248000,-1133.73,0.00017461,2]
[425699028,1781866248000,-1133.73,0.00017461,2]
[425699030,1781866248000,-1133.93158704,0.00017461,2]
[425699032,1781866248000,-427.05497,0.00017484,2]
[425698917,1781866248000,-503.08326894,0.00017451,2]
[425699008,1781866248000,-1133.73,0.00017461,2]
[425698973,1781866248000,-1133.73,0.00017459,2]
[425699034,1781866248000,-151.0,0.00017509,2]
[425698971,1781866248000,-1133.73,0.00017459,2]
[425698912,1781866248000,-500.0,0.00017451,2]
[425698919,1781866248000,-500.0,0.00017451,2]
[425698923,1781866248000,-500.0,0.00017451,2]
[425698921,1781866248000,-500.0,0.00017451,2]
[425698927,1781866248000,-500.0,0.00017451,2]
[425698930,1781866248000,-517.14607837,0.00017451,2]
[425698925,1781866248000,-500.0,0.00017451,2]
[425698929,1781866248000,-500.0,0.00017451,2]
[425698977,1781866248000,-500.0,0.00017461,2]
[425698934,1781866248000,-500.0,0.00017451,2]
[425698937,1781866248000,-500.0,0.00017451,2]
[425698936,1781866248000,-500.0,0.00017451,2]
[425698939,1781866248000,-500.0,0.00017451,2]
[425698941,1781866248000,-500.0,0.00017451,2]
[425698943,1781866248000,-500.0,0.00017451,2]
[425698932,1781866248000,-516.86,0.00017451,2]
[425698950,1781866248000,-1334.556146,0.00017451,2]
[425698945,1781866248000,-401.51224027,0.00017451,2]
[425698970,1781866248000,-500.0,0.00017459,2]
[425698968,1781866248000,-500.0,0.00017459,2]
[425698966,1781866248000,-501.29321047,0.00017455,2]
[425698963,1781866248000,-500.0,0.00017454,2]
[425698961,1781866248000,-151.0,0.00017451,2]
[425698964,1781866248000,-500.0,0.00017454,2]
[425698952,1781866248000,-500.0,0.00017451,2]
[425698954,1781866248000,-1334.556146,0.00017451,2]
[425698957,1781866248000,-1334.556146,0.00017451,2]
[425698948,1781866248000,-500.0,0.00017451,2]
[425698956,1781866248000,-1334.556146,0.00017451,2]
[425698947,1781866248000,-507.41022922,0.00017451,2]